bitfinex/quotes_SOLUSD_20250622
["timestamp","ask_amount","ask_price","bid_price","bid_amount"]
[1750585386420,10.71718213,134.1,134.06,7.45934656]
[1750585386600,10.71718213,134.1,134.06,26.10771296]
[1750585386601,146.9,134.09,134.06,26.10771296]
[1750585386794,146.9,134.09,134.06,36.82489509]
[1750585387191,146.9,134.09,134.06,26.10771296]
[1750585387690,146.9,134.09,134.06,36.82489509]
[1750585388510,146.9,134.09,134.06,7.45934656]
[1750585388511,10.71718213,134.08,134.06,7.45934656]
[1750585388719,146.9,134.07,134.04,7.46045956]
[1750585388896,10.71718213,134.06,134.04,7.46045956]
[1750585389318,187.84,134.07,134.04,7.46045956]
[1750585389526,10.71718213,134.05,134.01,7.46212969]
[1750585389876,40.94,134.07,134.03,10.71718213]
[1750585389997,18.77718213,134.07,134.03,10.71718213]
[1750585390416,10.71718213,134.05,134.01,36.83463604]
[1750585391025,32.88,134.06,134.01,36.83463604]
[1750585391026,10.71718213,134.04,134.01,26.11745391]
[1750585391431,10.71718213,134.03,133.99,7.46324352]
[1750585391633,10.71718213,134.03,133.99,18.18042565]
[1750585391941,8.06,134.07,133.99,18.18042565]
[1750585391942,43.59718213,134.04,133.99,36.83853446]
[1750585392533,10.71718213,134.03,133.99,36.83853446]
[1750585392833,10.71718213,134.03,133.99,26.12135233]
[1750585393440,10.71718213,134.02,133.99,18.65810881]
[1750585393641,10.71718213,134.01,133.98,7.46380056]
[1750585393854,10.71718213,133.99,133.98,7.46380056]
[1750585394217,10.71718213,134.0,133.98,7.46380056]
[1750585395519,10.71718213,134.0,133.97,7.46435769]
[1750585395931,32.88,134.02,133.98,10.71718213]
[1750585396133,16.1925,134.07,134.01,10.71718213]
[1750585396320,18.77718213,134.07,134.03,10.71718213]
[1750585397042,18.77718213,134.07,134.02,10.71718213]
[1750585397545,18.77718213,134.07,134.03,7.46101619]
[1750585398140,10.71718213,134.06,134.03,7.46101619]
[1750585398829,16.3420437,134.05,134.03,7.46101619]
[1750585399024,16.3420437,134.06,134.03,7.46101619]
[1750585399228,16.3420437,134.05,134.03,7.46101619]
[1750585399535,16.3420437,134.05,134.02,18.6534258]
[1750585400336,16.3420437,134.05,134.01,7.46212969]
[1750585400533,16.3420437,134.05,134.01,26.11745391]
[1750585400726,16.3420437,134.05,134.01,42.45949761]
[1750585402052,16.3420437,134.05,134.01,26.11745391]
[1750585402243,146.9,134.04,134.01,26.11745391]
[1750585403546,146.9,134.04,134.01,42.45949761]
[1750585403743,146.9,134.04,134.01,26.11745391]
[1750585405028,146.9,134.04,134.01,42.45949761]
[1750585406933,146.9,134.04,133.99,26.12135233]
[1750585407135,146.9,134.04,134.01,16.3420437]
[1750585407753,146.9,134.04,134.0,16.3420437]
[1750585407927,163.2420437,134.03,133.99,42.46339603]
[1750585408123,163.2420437,134.03,133.99,26.12135233]
[1750585408324,196.0820437,134.03,133.99,26.12135233]
[1750585409336,16.3420437,134.02,133.99,26.12135233]
[1750585410426,179.74,134.03,133.99,7.46324352]
[1750585410427,16.3420437,134.01,133.99,7.46324352]
[1750585410621,16.3420437,134.0,133.99,7.46324352]
[1750585411329,196.0820437,134.01,133.97,26.12512172]
[1750585412373,16.3420437,134.04,134.0,16.3420437]
[1750585412931,197.6891437,134.05,134.0,16.3420437]
[1750585413134,163.2420437,134.05,134.01,16.3420437]
[1750585413343,163.2420437,134.05,134.02,7.46157289]
[1750585414940,163.2420437,134.05,134.01,26.11661981]
[1750585416153,146.9,134.05,134.02,16.3420437]
[1750585416358,163.2420437,134.05,134.01,26.11661981]
[1750585417854,16.3420437,134.04,134.01,7.46212969]
[1750585418157,16.3420437,134.03,134.0,7.46268656]
[1750585418954,10.72863335,134.03,134.0,7.46268656]
[1750585419756,179.72,134.05,134.0,7.46268656]
[1750585420060,10.72863335,134.03,134.0,7.46268656]
[1750585420248,43.54863335,134.03,133.99,26.12135233]
[1750585421249,10.72863335,134.02,133.99,26.12135233]
[1750585422166,10.72863335,134.01,133.99,26.12135233]
[1750585423067,146.9,134.0,133.99,7.46324352]
[1750585423964,146.9,134.0,133.98,7.46380056]
[1750585425344,146.9,134.0,133.97,26.12514094]
[1750585426337,146.9,133.99,133.97,26.12514094]
[1750585427061,146.9,133.98,133.97,7.46435769]
[1750585427762,146.9,133.98,133.96,7.46491489]
[1750585428350,146.9,133.98,133.96,18.19354824]
[1750585429063,146.9,133.98,133.97,10.72863335]
[1750585429760,146.9,133.98,133.97,18.19299104]
[1750585432266,146.9,133.98,133.97,7.46435769]
[1750585432452,146.9,133.98,133.97,18.19299104]
[1750585433173,146.9,133.98,133.97,7.46435769]
[1750585436578,146.9,133.98,133.96,7.46491489]
[1750585436886,146.9,133.98,133.97,10.72863335]
[1750585438446,154.82,134.02,133.97,10.72863335]
[1750585438774,154.82,134.02,134.0,10.72863335]
[1750585439677,7.92,134.02,134.0,10.72863335]
[1750585439979,7.92,134.02,133.99,10.72863335]
[1750585441367,7.92,134.02,134.0,7.46268656]
[1750585441680,10.72863335,134.04,134.0,26.11940297]
[1750585442273,10.72863335,134.04,134.0,36.84803632]
[1750585442579,10.72863335,134.04,134.0,26.11940297]
[1750585443363,10.72863335,134.04,134.0,36.84803632]
[1750585446768,190.34863335,134.05,134.0,36.84803632]
[1750585446955,146.9,134.04,134.0,36.84803632]
[1750585448478,146.9,134.04,134.0,26.11940297]
[1750585448682,157.62863335,134.04,134.0,36.84803632]
[1750585449553,146.9,134.04,134.0,36.84803632]
[1750585449769,157.62863335,134.04,134.0,36.84803632]
[1750585449982,146.9,134.04,134.0,36.84803632]
[1750585450288,146.9,134.04,134.01,10.72863335]
[1750585450467,146.9,134.04,134.0,36.84803632]
[1750585451388,146.9,134.04,134.0,10.72863335]
[1750585452481,146.9,134.03,134.01,7.46212969]
[1750585452989,146.9,134.02,134.01,7.46212969]
[1750585453177,157.62863335,134.02,134.01,7.46212969]
[1750585454379,146.9,134.02,133.98,36.8518276]
[1750585454587,179.58,134.01,133.98,36.8518276]
[1750585454896,146.9,134.01,133.98,36.8518276]
[1750585455861,146.9,134.01,133.98,26.12319425]
[1750585456262,157.62863335,134.01,133.98,26.12319425]
[1750585457782,146.9,134.01,133.98,26.12319425]
[1750585458289,146.9,134.0,133.98,26.12319425]
[1750585458801,146.9,133.99,133.98,7.46380056]
[1750585459084,10.72863335,133.99,133.98,7.46380056]
[1750585459865,40.52,134.0,133.96,36.85583548]
[1750585460072,18.58863335,134.0,133.96,26.12720213]
[1750585460276,43.38863335,133.99,133.96,26.12720213]
[1750585460677,10.72863335,133.97,133.94,7.46602956]
[1750585460881,32.66,133.96,133.94,7.46602956]
[1750585461076,32.16,133.96,133.94,7.46602956]
[1750585461384,43.38863335,133.98,133.94,18.19466291]
[1750585461892,43.38863335,133.98,133.94,26.13110347]
[1750585462194,10.72863335,133.97,133.94,26.13110347]
[1750585462687,32.66,133.98,133.94,26.13110347]
[1750585462897,43.38863335,133.98,133.94,26.13110347]
[1750585463189,10.72863335,133.97,133.94,26.13110347]
[1750585463774,10.72863335,133.97,133.94,18.66507391]
[1750585463975,10.72863335,133.96,133.93,7.46658702]
[1750585464198,157.62863335,133.96,133.93,7.46658702]
[1750585464500,190.26863335,133.96,133.93,7.46658702]
[1750585465073,10.72863335,133.95,133.93,7.46658702]
[1750585465302,146.9,133.94,133.93,7.46658702]
[1750585465779,146.9,133.94,133.93,18.19522037]
[1750585466301,146.9,133.94,133.93,7.46658702]
[1750585466504,146.9,133.94,133.93,18.19522037]
[1750585468699,146.9,133.94,133.93,7.46658702]
[1750585470502,146.9,133.94,133.92,7.46714456]
[1750585471601,146.9,133.93,133.92,7.46714456]
[1750585471974,190.24863335,133.93,133.89,7.46881768]
[1750585472206,146.9,133.92,133.91,26.0]
[1750585472588,146.9,133.92,133.91,33.46770218]
[1750585474477,146.9,133.91,133.86,18.67499331]
[1750585474675,146.9,133.91,133.83,1.5807]
[1750585474676,10.72863335,133.88,133.84,7.47160789]
[1750585474889,10.72863335,133.88,133.87,26.0]
[1750585475285,43.32863335,133.88,133.87,26.0]
[1750585475494,146.9,133.87,133.84,7.47160789]
[1750585475704,190.22863335,133.86,133.84,7.47160789]
[1750585476931,179.5,133.86,133.84,7.47160789]
[1750585477210,146.9,133.86,133.84,7.47160789]
[1750585479521,10.72863335,133.85,133.84,7.47160789]
[1750585479684,157.62863335,133.85,133.81,7.47328301]
[1750585479886,10.72863335,133.82,133.81,7.47328301]
[1750585480195,43.32863335,133.82,133.78,7.47495888]
[1750585480392,10.72863335,133.81,133.78,7.47495888]
[1750585480709,32.6,133.8,133.76,26.16505286]
[1750585480916,32.6,133.8,133.76,36.89368621]
[1750585481127,7.86,133.81,133.79,10.72863335]
[1750585481704,7.86,133.81,133.78,10.72863335]
[1750585482723,18.58863335,133.81,133.79,7.47440017]
[1750585484092,51.18863335,133.81,133.79,7.47440017]
[1750585484307,51.18863335,133.81,133.78,18.68705072]
[1750585485199,40.46,133.81,133.78,18.68705072]
[1750585485402,51.18863335,133.81,133.78,26.1620096]
[1750585487221,40.46,133.81,133.78,26.1620096]
[1750585487455,7.86,133.81,133.8,7.47384155]
[1750585488720,7.86,133.81,133.79,10.72863335]
[1750585489595,7.86,133.81,133.8,10.72863335]
[1750585489823,146.9,133.83,133.8,10.72863335]
[1750585490320,146.9,133.83,133.79,10.72863335]
[1750585490923,146.9,133.83,133.8,26.15844543]
[1750585491106,146.9,133.83,133.8,36.88707878]
[1750585495233,146.9,133.83,133.81,10.72863335]
[1750585495541,146.9,133.83,133.8,52.15844543]
[1750585495833,146.9,133.83,133.81,10.72863335]
[1750585498708,146.9,133.83,133.82,10.72863335]
[1750585500242,146.9,133.83,133.82,18.2013579]
[1750585500937,146.9,133.83,133.82,36.85100676]
[1750585501324,7.8,133.86,133.83,18.64964886]
[1750585501516,7.8,133.86,133.83,29.37828221]
[1750585501715,7.8,133.86,133.85,26.0]
[1750585502416,7.8,133.86,133.85,33.47104968]
[1750585504149,18.52863335,133.86,133.85,33.47104968]
[1750585504316,18.52863335,133.86,133.83,7.47216618]
[1750585504317,51.06863335,133.86,133.83,7.47216618]
[1750585504517,10.72863335,133.85,133.83,7.47216618]
[1750585505633,146.9,133.85,133.83,36.88121498]
[1750585505838,15.17223958,133.87,133.84,10.72863335]
[1750585506014,15.17223958,133.87,133.86,10.72863335]
[1750585506213,15.17223958,133.87,133.85,10.72863335]
[1750585506615,15.17223958,133.87,133.86,7.47049155]
[1750585506925,15.17223958,133.87,133.86,36.84877376]
[1750585508043,15.17223958,133.87,133.86,18.1991249]
[1750585508641,15.17223958,133.87,133.84,10.72863335]
[1750585509728,25.90087293,133.87,133.83,18.68041545]
[1750585509931,10.72863335,133.86,133.83,18.68041545]
[1750585510137,15.17223958,133.87,133.83,18.68041545]
[1750585510340,10.72863335,133.86,133.83,18.68041545]
[1750585510741,10.72863335,133.86,133.83,26.15258163]
[1750585511959,15.17223958,133.87,133.84,10.72863335]
[1750585512942,25.90087293,133.87,133.83,26.15258163]
[1750585513524,10.72863335,133.86,133.83,26.15258163]
[1750585514040,10.72863335,133.86,133.83,18.68041545]
[1750585514319,10.72863335,133.86,133.82,7.47272455]
[1750585514320,10.72863335,133.85,133.82,7.47272455]
[1750585514645,10.72863335,133.86,133.82,7.47272455]
[1750585514837,16.76353958,133.87,133.82,36.88316928]
[1750585514838,27.49217293,133.87,133.82,36.88316928]
[1750585515044,15.17223958,133.87,133.83,10.72863335]
[1750585515936,15.17223958,133.87,133.84,26.15062761]
[1750585516522,15.17223958,133.87,133.84,36.87926096]
[1750585517140,15.17223958,133.87,133.84,26.15062761]
[1750585517348,15.17223958,133.87,133.85,10.72863335]
[1750585518347,15.17223958,133.87,133.84,10.72863335]
[1750585519229,25.90087293,133.87,133.82,37.36362277]
[1750585519424,25.90087293,133.87,133.82,48.09225612]
[1750585519638,25.90087293,133.87,133.82,10.72863335]
[1750585520334,146.9,133.86,133.83,26.15258163]
[1750585522847,146.9,133.86,133.83,36.88121498]
[1750585524974,146.9,133.86,133.84,10.72863335]
[1750585525756,146.9,133.86,133.83,36.88121498]
[1750585526861,146.9,133.86,133.83,26.15258163]
[1750585527160,157.62863335,133.86,133.83,26.15258163]
[1750585528060,146.9,133.86,133.83,26.15258163]
[1750585529942,157.62863335,133.86,133.83,26.15258163]
[1750585530481,190.06863335,133.86,133.83,26.15258163]
[1750585531784,146.9,133.85,133.83,26.15258163]
[1750585532062,146.9,133.85,133.83,18.68041545]
[1750585533778,157.62863335,133.85,133.82,7.47272455]
[1750585533940,146.9,133.84,133.82,7.47272455]
[1750585534145,146.9,133.83,133.8,26.15707182]
[1750585535197,157.62863335,133.82,133.8,7.47384155]
[1750585535349,10.72863335,133.81,133.8,7.47384155]
[1750585536181,10.72863335,133.81,133.78,18.6872456]
[1750585536182,10.72863335,133.81,133.78,26.16220448]
[1750585537166,43.14863335,133.81,133.75,26.16822429]
[1750585537446,10.72863335,133.78,133.75,26.16822429]
[1750585538168,10.72863335,133.79,133.75,26.16822429]
[1750585539173,10.72863335,133.79,133.75,36.89685764]
[1750585539348,10.72863335,133.78,133.75,26.16822429]
[1750585539762,10.72863335,133.76,133.75,7.47663551]
[1750585540144,10.72863335,133.76,133.73,7.47775368]
[1750585540349,10.72863335,133.74,133.7,7.47943156]
[1750585540561,10.72863335,133.73,133.7,26.17801046]
[1750585540764,179.32,133.75,133.7,26.17801046]
[1750585540765,190.04863335,133.75,133.7,36.90664381]
[1750585541373,10.72863335,133.74,133.7,36.90664381]
[1750585541871,190.04863335,133.75,133.7,36.90664381]
[1750585542975,146.9,133.75,133.73,10.72863335]
[1750585543553,146.9,133.75,133.74,7.47719455]
[1750585543948,146.9,133.75,133.74,18.2058279]
[1750585544181,18.44863335,133.79,133.74,36.89881429]
[1750585545044,7.72,133.79,133.75,10.72863335]
[1750585545476,7.72,133.79,133.76,26.16626793]
[1750585546964,10.72863335,133.78,133.76,26.16626793]
[1750585547500,18.44863335,133.79,133.76,26.16626793]
[1750585547777,7.72,133.79,133.76,18.69019138]
[1750585547948,18.44863335,133.79,133.76,18.69019138]
[1750585548463,10.72863335,133.78,133.75,7.47663551]
[1750585548669,10.72863335,133.77,133.75,7.47663551]
[1750585549175,146.9,133.76,133.75,7.47663551]
[1750585549672,157.62863335,133.76,133.73,7.47775368]
[1750585550468,146.9,133.75,133.7,7.47943156]
[1750585550660,10.72863335,133.73,133.7,7.47943156]
[1750585551180,146.9,133.74,133.7,7.47943156]
[1750585551181,10.72863335,133.71,133.7,7.47943156]
[1750585551388,10.72863335,133.71,133.68,7.48055056]
[1750585551678,10.72863335,133.7,133.66,7.4816699]
[1750585551874,180.8509,133.72,133.66,7.4816699]
[1750585551875,10.72863335,133.69,133.66,7.4816699]
[1750585552073,32.38,133.7,133.66,26.18584467]
[1750585552269,146.9,133.71,133.67,10.72863335]
[1750585552473,146.9,133.71,133.66,26.18584467]
[1750585552677,146.9,133.71,133.67,10.72863335]
[1750585552875,10.72863335,133.69,133.66,26.18584467]
[1750585553182,146.9,133.71,133.66,7.4816699]
[1750585553183,32.38,133.7,133.66,7.4816699]
[1750585553382,10.72863335,133.67,133.66,7.4816699]
[1750585553678,10.72863335,133.67,133.63,7.48334954]
[1750585553883,43.10863335,133.66,133.63,7.48334954]
[1750585554272,10.72863335,133.65,133.63,7.48334954]
[1750585554473,43.10863335,133.64,133.61,7.48446972]
[1750585554677,10.72863335,133.62,133.61,7.48446972]
[1750585555363,32.38,133.64,133.61,7.48446972]
[1750585555558,32.38,133.64,133.61,36.92427738]
[1750585555760,43.10863335,133.64,133.61,26.19564403]
[1750585556884,48.82304519,133.64,133.61,26.19564403]
[1750585557365,16.44304519,133.63,133.61,26.19564403]
[1750585557573,32.38,133.64,133.61,26.19564403]
[1750585557770,48.82304519,133.64,133.61,18.71117431]
[1750585559089,172.9,133.66,133.61,18.71117431]
[1750585559090,146.9,133.66,133.63,16.44304519]
[1750585559265,7.66,133.67,133.63,16.44304519]
[1750585559460,7.66,133.67,133.64,16.44304519]
[1750585559661,7.66,133.67,133.66,16.44304519]
[1750585559864,14.13931338,133.68,133.66,23.92471509]
[1750585560082,14.13931338,133.68,133.66,7.4816699]
[1750585562595,14.13931338,133.68,133.65,16.44304519]
[1750585562971,16.44304519,133.66,133.64,7.48278958]
[1750585564099,16.44304519,133.67,133.64,7.48278958]
[1750585564298,14.13931338,133.68,133.65,16.44304519]
[1750585564675,14.13931338,133.68,133.66,7.4816699]
[1750585566784,14.13931338,133.68,133.66,23.92471509]
[1750585568672,14.13931338,133.68,133.66,7.4816699]
[1750585570312,163.34304519,133.67,133.61,42.63766581]
[1750585570492,163.34304519,133.66,133.62,16.44304519]
[1750585570791,163.34304519,133.66,133.63,7.48334954]
[1750585570997,146.9,133.66,133.63,7.48334954]
[1750585571202,163.34304519,133.66,133.63,7.48334954]
[1750585572985,163.34304519,133.66,133.61,42.63766581]
[1750585573297,154.56,133.66,133.61,42.63766581]
[1750585573599,16.44304519,133.64,133.61,26.19462062]
[1750585573773,16.44304519,133.64,133.61,7.48446972]
[1750585574798,179.24,133.65,133.61,7.48446972]
[1750585574799,16.44304519,133.62,133.61,7.48446972]
[1750585575007,146.9,133.63,133.6,16.44304519]
[1750585575198,146.9,133.63,133.61,16.44304519]
[1750585575602,146.9,133.63,133.62,16.44304519]
[1750585575909,146.9,133.63,133.62,15.94304519]
[1750585576101,146.9,133.63,133.59,26.19956582]
[1750585576597,146.9,133.63,133.62,16.44304519]
[1750585576807,146.9,133.63,133.62,26.0]
[1750585577001,146.9,133.63,133.62,49.92695478]
[1750585579501,146.9,133.67,133.62,106.05627673]
[1750585579716,146.9,133.67,133.65,16.44304519]
[1750585580305,146.9,133.67,133.64,16.44304519]
[1750585581311,146.9,133.67,133.65,7.4822297]
[1750585582910,146.9,133.67,133.65,23.92527489]
[1750585583398,146.9,133.67,133.65,7.4822297]
[1750585583718,195.66304519,133.67,133.65,7.4822297]
[1750585585096,195.66304519,133.67,133.63,7.48334954]
[1750585585295,179.22,133.67,133.63,23.92639473]
[1750585585490,146.9,133.66,133.64,16.44304519]
[1750585585704,146.9,133.66,133.65,16.44304519]
[1750585586685,146.9,133.66,133.63,52.1917234]
[1750585587008,146.9,133.66,133.65,16.44304519]
[1750585587191,146.9,133.66,133.65,23.92527489]
[1750585589506,14.13931338,133.68,133.67,26.0]
[1750585589713,146.9,133.71,133.67,42.44304519]
[1750585590094,146.9,133.71,133.69,16.44304519]
[1750585590293,146.9,133.71,133.67,26.0]
[1750585590495,146.9,133.71,133.69,16.44304519]
[1750585590895,39.92,133.74,133.7,16.44304519]
[1750585591411,7.62,133.74,133.7,16.44304519]
[1750585591609,7.62,133.74,133.71,7.47887218]
[1750585591811,7.62,133.74,133.71,42.61909783]
[1750585592012,7.62,133.74,133.73,16.44304519]
[1750585592203,7.62,133.74,133.72,16.44304519]
[1750585593097,7.62,133.74,133.73,16.44304519]
[1750585593409,48.72304519,133.78,133.73,16.44304519]
[1750585593608,32.28,133.78,133.74,23.92023974]
[1750585593813,56.34304519,133.79,133.75,16.44304519]
[1750585594124,7.62,133.79,133.76,16.44304519]
[1750585594317,7.62,133.79,133.77,16.44304519]
[1750585594926,146.9,133.8,133.74,63.55615372]
[1750585594927,146.9,133.8,133.78,16.44304519]
[1750585595598,146.9,133.8,133.79,23.91744536]
[1750585595813,97.20304519,133.83,133.79,7.47440017]
[1750585596219,16.44304519,133.82,133.79,7.47440017]
[1750585597025,80.76,133.83,133.79,7.47440017]
[1750585597236,97.20304519,133.83,133.79,7.47440017]
[1750585597605,97.18304519,133.83,133.79,7.47440017]
[1750585598233,97.18304519,133.83,133.78,16.44304519]
[1750585599508,97.18304519,133.83,133.79,7.47440017]
[1750585600210,146.9,133.82,133.79,7.47440017]
[1750585601119,146.9,133.82,133.79,42.6034458]
[1750585601522,163.34304519,133.82,133.79,26.16040061]
[1750585602608,146.9,133.82,133.79,26.16040061]
[1750585602941,146.9,133.82,133.79,42.6034458]
[1750585603140,146.9,133.82,133.78,42.44304519]
[1750585604156,146.9,133.82,133.78,26.0]
[1750585604323,21.57245161,133.91,133.81,16.44304519]
[1750585604324,146.9,133.86,133.81,16.44304519]
[1750585604647,7.6,133.89,133.85,42.44304519]
[1750585604835,7.6,133.89,133.87,16.44304519]
[1750585605047,24.04304519,133.89,133.85,26.0]
[1750585605226,16.44304519,133.87,133.85,7.47104968]
[1750585605633,16.44304519,133.88,133.85,26.14867388]
[1750585605834,24.04304519,133.89,133.85,42.59171907]
[1750585606026,7.6,133.89,133.85,42.59171907]
[1750585606225,7.6,133.89,133.86,16.44304519]
[1750585606838,7.6,133.89,133.87,16.44304519]
[1750585607250,7.6,133.94,133.88,42.58585965]
[1750585607454,16.44304519,133.93,133.89,16.44304519]
[1750585607753,16.44304519,133.9,133.88,26.14281446]
[1750585608127,16.44304519,133.91,133.88,26.14281446]
[1750585609040,16.44304519,133.92,133.88,26.14281446]
[1750585609239,48.66304519,133.92,133.88,26.14281446]
[1750585610666,16.44304519,133.9,133.88,7.46937556]
[1750585610831,16.44304519,133.91,133.88,7.46937556]
[1750585611030,16.44304519,133.9,133.85,26.0]
[1750585611250,32.2,133.9,133.86,7.47049155]
[1750585611442,16.44304519,133.87,133.86,7.47049155]
[1750585612345,16.44304519,133.87,133.84,26.15015596]
[1750585613934,48.64304519,133.9,133.85,16.44304519]
[1750585614131,16.44304519,133.9,133.85,16.44304519]
[1750585614336,16.44304519,133.89,133.85,16.44304519]
[1750585614654,16.44304519,133.89,133.86,26.14672044]
[1750585615327,146.9,133.92,133.86,52.14672044]
[1750585615528,16.44304519,133.89,133.86,52.14672044]
[1750585615939,32.18,133.91,133.87,16.44304519]
[1750585615940,16.44304519,133.91,133.87,16.44304519]
[1750585616247,154.44,133.92,133.88,16.44304519]
[1750585616428,7.54,133.92,133.89,16.44304519]
[1750585617960,7.54,133.92,133.9,7.46825989]
[1750585618136,7.54,133.92,133.9,23.91130508]
[1750585618661,16.44304519,133.96,133.91,16.44304519]
[1750585619543,7.54,133.97,133.92,16.44304519]
[1750585619754,23.98304519,133.97,133.93,16.44304519]
[1750585619947,7.54,133.97,133.94,26.13110347]
[1750585620147,7.54,133.97,133.94,42.57414866]
[1750585620357,163.34304519,133.99,133.95,16.44304519]
[1750585621154,16.44304519,133.99,133.95,16.44304519]
[1750585621374,16.44304519,134.0,133.95,17.96854519]
[1750585621544,39.7,134.02,133.96,16.44304519]
[1750585621745,7.54,134.02,133.99,16.44304519]
[1750585622152,7.54,134.02,134.0,7.46268656]
[1750585624063,163.34304519,134.05,134.01,16.44304519]
[1750585624239,163.34304519,134.05,134.02,26.11550513]
[1750585624437,55.98,134.07,134.02,42.55855032]
[1750585624438,16.44304519,134.07,134.02,42.55855032]
[1750585624662,16.44304519,134.07,134.02,26.11550513]
[1750585624843,16.44304519,134.06,134.02,42.55855032]
[1750585625554,16.44304519,134.03,134.02,7.46157289]
[1750585625748,16.44304519,134.04,134.02,7.46157289]
[1750585626350,16.44304519,134.03,134.0,7.46268656]
[1750585626549,16.44304519,134.02,134.0,7.46268656]
[1750585627868,16.44304519,134.03,134.0,7.46268656]
[1750585628048,16.44304519,134.03,134.0,26.11940297]
[1750585630278,146.9,134.11,134.02,44.03634519]
[1750585630445,16.44304519,134.07,134.03,42.44304519]
[1750585630645,146.9,134.11,134.03,42.44304519]
[1750585630646,16.44304519,134.06,134.03,26.0]
[1750585631053,16.44304519,134.04,134.01,26.0]
[1750585631263,16.44304519,134.02,133.97,26.12402573]
[1750585631461,38.777,134.05,133.97,26.12402573]
[1750585631462,16.44304519,133.99,133.97,26.12402573]
[1750585631658,16.44304519,134.01,133.97,26.12402573]
[1750585632055,18.64964886,134.04,133.97,26.12402573]
[1750585632056,16.44304519,134.0,133.97,26.12402573]
[1750585632672,16.44304519,134.01,133.97,26.12402573]
[1750585632879,16.44304519,134.01,133.97,42.56707092]
[1750585633170,146.9,134.07,134.01,44.64964886]
[1750585633352,16.44304519,134.06,134.02,42.55855032]
[1750585633542,16.44304519,134.07,134.02,42.55855032]
[1750585634948,16.44304519,134.07,134.04,26.11160847]
[1750585636944,16.44304519,134.07,134.04,18.65114891]
[1750585637143,7.54,134.09,134.04,18.65114891]
[1750585637348,23.98304519,134.09,134.05,16.44304519]
[1750585637944,7.54,134.09,134.06,16.44304519]
[1750585638147,16.44304519,134.11,134.06,16.44304519]
[1750585639176,146.9,134.12,134.07,79.84276175]
[1750585639377,146.9,134.12,134.07,63.39971656]
[1750585639378,16.44304519,134.12,134.07,63.39971656]
[1750585639675,16.44304519,134.12,134.08,16.44304519]
[1750585641278,16.44304519,134.13,134.09,35.08723938]
[1750585641488,7.54,134.14,134.09,18.64419419]
[1750585641489,16.44304519,134.12,134.09,18.64419419]
[1750585641784,16.44304519,134.1,134.08,7.45823389]
[1750585641986,16.44304519,134.09,134.08,7.45823389]
[1750585642295,1.5631,134.1,134.04,26.11066071]
[1750585642460,16.44304519,134.06,134.04,26.11066071]
[1750585642864,148.4631,134.1,134.04,26.11066071]
[1750585643070,148.4631,134.1,134.04,18.65020115]
[1750585643361,16.44304519,134.06,134.04,18.65020115]
[1750585643574,16.44304519,134.07,134.04,18.65020115]
[1750585643968,32.06,134.09,134.04,18.65020115]
[1750585644171,16.44304519,134.09,134.04,35.09324634]
[1750585644380,16.44304519,134.07,134.04,18.65020115]
[1750585645292,16.44304519,134.07,134.04,26.11066071]
[1750585645483,16.44304519,134.06,134.04,26.11066071]
[1750585645683,32.06,134.08,134.04,7.46045956]
[1750585645879,16.44304519,134.06,134.04,7.46045956]
[1750585647486,16.44304519,134.06,134.03,26.11329521]
[1750585651102,16.44304519,134.05,134.03,7.46101619]
[1750585651398,195.40304519,134.04,134.0,7.46268656]
[1750585651598,7.48,134.05,133.95,18.04004519]
[1750585651599,16.44304519,134.01,133.97,18.66086031]
[1750585652114,16.44304519,133.99,133.96,7.46491489]
[1750585652477,178.94,134.03,133.96,7.46491489]
[1750585652478,16.44304519,133.98,133.96,7.46491489]
[1750585652676,26.0,134.0,133.96,7.46491489]
[1750585652897,16.44304519,133.99,133.96,26.12720213]
[1750585654779,16.44304519,134.01,133.96,42.57024732]
[1750585654979,16.44304519,134.01,133.97,16.44304519]
[1750585655714,16.44304519,134.01,133.98,26.12330197]
[1750585656535,16.44304519,134.02,133.98,26.12330197]
[1750585657713,163.34304519,134.03,133.98,42.56634716]
[1750585658010,163.34304519,134.03,133.99,16.44304519]
[1750585658205,146.9,134.07,134.01,16.44304519]
[1750585658402,186.44,134.07,134.02,16.44304519]
[1750585658708,16.44304519,134.06,134.02,16.44304519]
[1750585659487,7.5,134.07,134.02,16.44304519]
[1750585659694,16.44304519,134.06,134.03,26.11355666]
[1750585660189,16.44304519,134.05,134.03,26.11355666]
[1750585660917,16.44304519,134.04,134.03,7.46101619]
[1750585661911,16.44304519,134.04,134.0,7.46268656]